[Event "Titled Tuesday Blitz September 21 2021"]
[White "De Silva, L M S T"]
[Black "Sliwicki, Damian"]
[WhiteFideId "9953698"]
[BlackFideId "1127128"]
[WhiteElo "1621"]
[BlackElo "2151"]
[Result "1-0"]
[Round "08"]
[TimeControl "180+1"]
[Date "2021.09.21"]
[WhiteClock "0:00:07"]
[BlackClock "0:00:13"]

1. e4 {[%clk 0:00:28]}  c5 {[%clk 0:02:55]} 2. Nf3 {[%clk 0:00:27]}  g6 {[%clk 0:02:42]} 3. d4 {[%clk 0:00:25]}  cxd4 {[%clk 0:02:39]} 4. Nxd4 {[%clk 0:00:26]}  Nc6 {[%clk 0:02:38]} 5. c4 {[%clk 0:00:23]}  Nf6 {[%clk 0:02:37]} 6. Nc3 {[%clk 0:00:23]}  Nxd4 {[%clk 0:02:38]} 7. Qxd4 {[%clk 0:00:23]}  d6 {[%clk 0:02:38]} 8. Be3 {[%clk 0:00:23]}  Bg7 {[%clk 0:02:39]} 9. Be2 {[%clk 0:00:23]}  O-O {[%clk 0:02:39]} 10. Qd2 {[%clk 0:00:24]}  a5 {[%clk 0:02:39]} 11. Bh6 {[%clk 0:00:24]}  a4 {[%clk 0:02:37]} 12. Bxg7 {[%clk 0:00:24]}  Kxg7 {[%clk 0:02:38]} 13. O-O {[%clk 0:00:25]}  Qa5 {[%clk 0:02:38]} 14. Rac1 {[%clk 0:00:23]}  Be6 {[%clk 0:02:37]} 15. Qd4 {[%clk 0:00:23]}  Rac8 {[%clk 0:02:34]} 16. Nd5 {[%clk 0:00:23]}  Bxd5 {[%clk 0:02:27]} 17. exd5 {[%clk 0:00:24]}  Qc5 {[%clk 0:02:25]} 18. Qc3 {[%clk 0:00:21]}  b5 {[%clk 0:02:07]} 19. b4 {[%clk 0:00:20]}  Qa7 {[%clk 0:02:01]} 20. c5 {[%clk 0:00:19]}  Kg8 {[%clk 0:01:52]} 21. Rfd1 {[%clk 0:00:19]}  dxc5 {[%clk 0:01:47]} 22. bxc5 {[%clk 0:00:20]}  Ne4 {[%clk 0:01:47]} 23. Qd4 {[%clk 0:00:16]}  Nxc5 {[%clk 0:01:43]} 24. Bxb5 {[%clk 0:00:17]}  a3 {[%clk 0:01:38]} 25. Bc6 {[%clk 0:00:17]}  Rfd8 {[%clk 0:01:21]} 26. Qxc5 {[%clk 0:00:17]}  Qa6 {[%clk 0:01:18]} 27. Qxe7 {[%clk 0:00:14]}  Qb6 {[%clk 0:01:05]} 28. Re1 {[%clk 0:00:14]}  Qb2 {[%clk 0:00:59]} 29. d6 {[%clk 0:00:09]}  Qb4 {[%clk 0:00:54]} 30. Bd5 {[%clk 0:00:07]}  Rf8 {[%clk 0:00:53]} 31. d7 {[%clk 0:00:07]}  Qxe7 {[%clk 0:00:46]} 32. dxc8=Q {[%clk 0:00:07]}  Qxe1+ {[%clk 0:00:40]} 33. Rxe1 {[%clk 0:00:08]}  Rxc8 {[%clk 0:00:40]} 34. Bb3 {[%clk 0:00:09]}  Kg7 {[%clk 0:00:38]} 35. g3 {[%clk 0:00:09]}  Kf6 {[%clk 0:00:38]} 36. Re4 {[%clk 0:00:10]}  Kf5 {[%clk 0:00:37]} 37. Rf4+ {[%clk 0:00:10]}  Ke5 {[%clk 0:00:37]} 38. Rxf7 {[%clk 0:00:11]}  h5 {[%clk 0:00:36]} 39. Ra7 {[%clk 0:00:11]}  Ke4 {[%clk 0:00:37]} 40. Kg2 {[%clk 0:00:12]}  g5 {[%clk 0:00:37]} 41. Ra4+ {[%clk 0:00:12]}  Ke5 {[%clk 0:00:37]} 42. Rxa3 {[%clk 0:00:13]}  h4 {[%clk 0:00:37]} 43. gxh4 {[%clk 0:00:13]}  gxh4 {[%clk 0:00:37]} 44. Ra4 {[%clk 0:00:14]}  Rg8+ {[%clk 0:00:34]} 45. Kh3 {[%clk 0:00:15]}  Rf8 {[%clk 0:00:34]} 46. Rxh4 {[%clk 0:00:15]}  Rxf2 {[%clk 0:00:34]} 47. Ra4 {[%clk 0:00:16]}  Kf5 {[%clk 0:00:30]} 48. Kg3 {[%clk 0:00:16]}  Rd2 {[%clk 0:00:29]} 49. h4 {[%clk 0:00:16]}  Rd3+ {[%clk 0:00:30]} 50. Kg2 {[%clk 0:00:17]}  Rc3 {[%clk 0:00:29]} 51. h5 {[%clk 0:00:17]}  Kg5 {[%clk 0:00:30]} 52. Ra5+ {[%clk 0:00:17]}  Kh6 {[%clk 0:00:29]} 53. Kf2 {[%clk 0:00:18]}  Rh3 {[%clk 0:00:28]} 54. Ke2 {[%clk 0:00:17]}  Rc3 {[%clk 0:00:26]} 55. Kd2 {[%clk 0:00:17]}  Rc7 {[%clk 0:00:25]} 56. a4 {[%clk 0:00:16]}  Kg7 {[%clk 0:00:24]} 57. Rb5 {[%clk 0:00:16]}  Kh8 {[%clk 0:00:20]} 58. Rb6 {[%clk 0:00:16]}  Rb7 {[%clk 0:00:20]} 59. a5 {[%clk 0:00:14]}  Rd7+ {[%clk 0:00:19]} 60. Kc3 {[%clk 0:00:14]}  Rc7+ {[%clk 0:00:19]} 61. Bc4 {[%clk 0:00:15]}  Rb7 {[%clk 0:00:20]} 62. Bd3 {[%clk 0:00:12]}  Rc7+ {[%clk 0:00:20]} 63. Kb4 {[%clk 0:00:13]}  Rd7 {[%clk 0:00:20]} 64. Bc4 {[%clk 0:00:12]}  Rb7 {[%clk 0:00:20]} 65. Kb5 {[%clk 0:00:12]}  Rc7 {[%clk 0:00:19]} 66. a6 {[%clk 0:00:12]}  Rd7 {[%clk 0:00:19]} 67. Rb8+ {[%clk 0:00:12]}  Kg7 {[%clk 0:00:19]} 68. Rb7 {[%clk 0:00:13]}  Kh8 {[%clk 0:00:19]} 69. Kc6 {[%clk 0:00:11]}  Rd6+ {[%clk 0:00:17]} 70. Kb5 {[%clk 0:00:08]}  Rd5+ {[%clk 0:00:14]} 71. Kb4 {[%clk 0:00:09]}  Rd6 {[%clk 0:00:12]} 72. Rb8+ {[%clk 0:00:09]}  Kh7 {[%clk 0:00:13]} 73. a7 {[%clk 0:00:07]}  Rd7 {[%clk 0:00:13]} 74. a8=Q {[%clk 0:00:06]}  Rc7 {[%clk 0:00:10]} 75. Rb7 {[%clk 0:00:06]}  Rxb7+ {[%clk 0:00:08]} 76. Qxb7+ {[%clk 0:00:07]}  Kh8 {[%clk 0:00:09]} 77. Bd3 {[%clk 0:00:05]}  Kg8 {[%clk 0:00:09]} 78. Qh7+ {[%clk 0:00:06]}  Kf8 {[%clk 0:00:10]} 79. Bc4 {[%clk 0:00:05]}  Ke8 {[%clk 0:00:11]} 80. Qg7 {[%clk 0:00:06]}  Kd8 {[%clk 0:00:12]} 81. h6 {[%clk 0:00:06]}  Kc8 {[%clk 0:00:13]} 82. h7 {[%clk 0:00:07]}  Kd8 {[%clk 0:00:13]} 83. h8=Q# {[%clk 0:00:07]} 1-0


[Site "https://www.chess.com"]

[Event "Titled Tuesday Blitz September 21 2021"]
[White "Estrada Nieto, Julian"]
[Black "Madaminov, Mukhiddin"]
[WhiteFideId "5101018"]
[BlackFideId "14210703"]
[WhiteElo "2270"]
[BlackElo "1855"]
[Result "1-0"]
[Round "08"]
[TimeControl "180+1"]
[Date "2021.09.21"]
[WhiteClock "0:00:03"]
[BlackClock "0:00:06"]

1. e4 {[%clk 0:02:19]}  e5 {[%clk 0:01:00]} 2. Nf3 {[%clk 0:02:18]}  Nc6 {[%clk 0:00:57]} 3. Bb5 {[%clk 0:02:17]}  Nf6 {[%clk 0:00:57]} 4. O-O {[%clk 0:02:15]}  a6 {[%clk 0:00:51]} 5. Bxc6 {[%clk 0:02:14]}  dxc6 {[%clk 0:00:51]} 6. Nxe5 {[%clk 0:02:13]}  Bc5 {[%clk 0:00:48]} 7. d3 {[%clk 0:01:37]}  O-O {[%clk 0:00:48]} 8. Nf3 {[%clk 0:01:37]}  Bg4 {[%clk 0:00:49]} 9. Be3 {[%clk 0:01:34]}  Qe7 {[%clk 0:00:34]} 10. Nbd2 {[%clk 0:01:31]}  Rad8 {[%clk 0:00:34]} 11. Bxc5 {[%clk 0:01:31]}  Qxc5 {[%clk 0:00:35]} 12. Qc1 {[%clk 0:01:18]}  Rfe8 {[%clk 0:00:32]} 13. h3 {[%clk 0:01:08]}  Bh5 {[%clk 0:00:31]} 14. Nb3 {[%clk 0:01:06]}  Qe7 {[%clk 0:00:18]} 15. Qf4 {[%clk 0:01:05]}  b6 {[%clk 0:00:17]} 16. Rfe1 {[%clk 0:00:58]}  c5 {[%clk 0:00:17]} 17. Nbd2 {[%clk 0:00:49]}  a5 {[%clk 0:00:17]} 18. Qh4 {[%clk 0:00:48]}  Bg6 {[%clk 0:00:16]} 19. Nc4 {[%clk 0:00:44]}  a4 {[%clk 0:00:16]} 20. Nce5 {[%clk 0:00:29]}  Qe6 {[%clk 0:00:13]} 21. Nxg6 {[%clk 0:00:28]}  hxg6 {[%clk 0:00:14]} 22. Ng5 {[%clk 0:00:26]}  Qe5 {[%clk 0:00:14]} 23. Rab1 {[%clk 0:00:17]}  Qd4 {[%clk 0:00:09]} 24. Nf3 {[%clk 0:00:17]}  Qd7 {[%clk 0:00:08]} 25. e5 {[%clk 0:00:15]}  Nd5 {[%clk 0:00:08]} 26. Ng5 {[%clk 0:00:14]}  Qf5 {[%clk 0:00:07]} 27. e6 {[%clk 0:00:10]}  fxe6 {[%clk 0:00:04]} 28. Qh7+ {[%clk 0:00:10]}  Kf8 {[%clk 0:00:04]} 29. Qh8+ {[%clk 0:00:10]}  Ke7 {[%clk 0:00:04]} 30. Qxg7+ {[%clk 0:00:10]}  Kd6 {[%clk 0:00:03]} 31. Nf7+ {[%clk 0:00:10]}  Kc6 {[%clk 0:00:03]} 32. Nxd8+ {[%clk 0:00:10]}  Rxd8 {[%clk 0:00:04]} 33. Qe5 {[%clk 0:00:10]}  Kb7 {[%clk 0:00:03]} 34. Qxe6 {[%clk 0:00:09]}  Qxe6 {[%clk 0:00:02]} 35. Rxe6 {[%clk 0:00:09]}  Nb4 {[%clk 0:00:03]} 36. Re2 {[%clk 0:00:06]}  a3 {[%clk 0:00:02]} 37. bxa3 {[%clk 0:00:06]}  Nxa2 {[%clk 0:00:03]} 38. Rbe1 {[%clk 0:00:05]}  Ra8 {[%clk 0:00:01]} 39. Re7 {[%clk 0:00:05]}  Rxa3 {[%clk 0:00:02]} 40. R1e6 {[%clk 0:00:05]}  Nc3 {[%clk 0:00:01]} 41. Rxg6 {[%clk 0:00:04]}  Ra1+ {[%clk 0:00:01]} 42. Kh2 {[%clk 0:00:04]}  Rc1 {[%clk 0:00:02]} 43. Rgg7 {[%clk 0:00:04]}  Rxc2 {[%clk 0:00:03]} 44. Rxc7+ {[%clk 0:00:04]}  Ka6 {[%clk 0:00:04]} 45. h4 {[%clk 0:00:04]}  Nd5 {[%clk 0:00:04]} 46. Ra7+ {[%clk 0:00:03]}  Kb5 {[%clk 0:00:04]} 47. h5 {[%clk 0:00:04]}  Rxf2 {[%clk 0:00:04]} 48. h6 {[%clk 0:00:04]}  Rf6 {[%clk 0:00:02]} 49. h7 {[%clk 0:00:03]}  Rh6+ {[%clk 0:00:03]} 50. Kg3 {[%clk 0:00:04]}  Nf6 {[%clk 0:00:04]} 51. Ra8 {[%clk 0:00:03]}  Rxh7 {[%clk 0:00:02]} 52. Rxh7 {[%clk 0:00:03]}  Nxh7 {[%clk 0:00:03]} 53. Kf4 {[%clk 0:00:03]}  Nf6 {[%clk 0:00:03]} 54. g4 {[%clk 0:00:04]}  Nd5+ {[%clk 0:00:03]} 55. Ke5 {[%clk 0:00:04]}  Nb4 {[%clk 0:00:03]} 56. g5 {[%clk 0:00:03]}  Nxd3+ {[%clk 0:00:03]} 57. Kf6 {[%clk 0:00:03]}  Nf4 {[%clk 0:00:03]} 58. g6 {[%clk 0:00:03]}  Nxg6 {[%clk 0:00:04]} 59. Kxg6 {[%clk 0:00:03]}  Kc4 {[%clk 0:00:04]} 60. Kf5 {[%clk 0:00:04]}  b5 {[%clk 0:00:05]} 61. Ke4 {[%clk 0:00:04]}  b4 {[%clk 0:00:06]} 62. Ke3 {[%clk 0:00:04]}  Kc3 {[%clk 0:00:06]} 63. Rc8 {[%clk 0:00:02]}  c4 {[%clk 0:00:06]} 64. Ke2 {[%clk 0:00:02]}  b3 {[%clk 0:00:07]} 65. Kd1 {[%clk 0:00:02]}  Kb4 {[%clk 0:00:02]} 66. Rb8+ {[%clk 0:00:02]}  Ka3 {[%clk 0:00:01]} 67. Kc1 {[%clk 0:00:03]}  c3 {[%clk 0:00:02]} 68. Kb1 {[%clk 0:00:03]}  c2+ {[%clk 0:00:01]} 69. Kc1 {[%clk 0:00:03]}  Ka4 {[%clk 0:00:01]} 70. Rb7 {[%clk 0:00:03]}  Ka3 {[%clk 0:00:02]} 71. Rb8 {[%clk 0:00:04]}  Ka4 {[%clk 0:00:01]} 72. Ra8+ {[%clk 0:00:04]}  Kb4 {[%clk 0:00:01]} 73. Kb2 {[%clk 0:00:04]}  Kc4 {[%clk 0:00:02]} 74. Rc8+ {[%clk 0:00:04]}  Kd3 {[%clk 0:00:03]} 75. Rc3+ {[%clk 0:00:04]}  Kd2 {[%clk 0:00:04]} 76. Kxb3 {[%clk 0:00:02]}  Kd1 {[%clk 0:00:04]} 77. Rxc2 {[%clk 0:00:02]}  Ke1 {[%clk 0:00:05]} 78. Kc3 {[%clk 0:00:03]}  Kd1 {[%clk 0:00:06]} 79. Kd3 {[%clk 0:00:03]} 1-0


[Site "https://www.chess.com"]

[Event "Titled Tuesday Blitz September 21 2021"]
[White "Kubicka, Anna"]
[Black "Maly, Alexey"]
[WhiteFideId "1152254"]
[BlackFideId "14103184"]
[WhiteElo "1986"]
[BlackElo "2250"]
[Result "0-1"]
[Round "08"]
[TimeControl "180+1"]
[Date "2021.09.21"]
[WhiteClock "0:00:08"]
[BlackClock "0:01:27"]

1. g3 {[%clk 0:01:06]}  d5 {[%clk 0:02:32]} 2. Bg2 {[%clk 0:01:05]}  Nf6 {[%clk 0:02:32]} 3. d4 {[%clk 0:01:04]}  Bf5 {[%clk 0:02:32]} 4. Nf3 {[%clk 0:01:02]}  e6 {[%clk 0:02:33]} 5. O-O {[%clk 0:01:03]}  h6 {[%clk 0:02:33]} 6. c4 {[%clk 0:01:03]}  Nbd7 {[%clk 0:02:34]} 7. Nbd2 {[%clk 0:01:03]}  c6 {[%clk 0:02:34]} 8. b3 {[%clk 0:01:03]}  Be7 {[%clk 0:02:34]} 9. Bb2 {[%clk 0:01:03]}  O-O {[%clk 0:02:35]} 10. Rc1 {[%clk 0:01:04]}  a5 {[%clk 0:02:35]} 11. c5 {[%clk 0:00:59]}  b6 {[%clk 0:02:34]} 12. cxb6 {[%clk 0:00:59]}  Qxb6 {[%clk 0:02:34]} 13. Re1 {[%clk 0:00:55]}  c5 {[%clk 0:02:34]} 14. Ba3 {[%clk 0:00:50]}  Rfc8 {[%clk 0:02:32]} 15. dxc5 {[%clk 0:00:50]}  Bxc5 {[%clk 0:02:32]} 16. Bxc5 {[%clk 0:00:50]}  Nxc5 {[%clk 0:02:32]} 17. Nd4 {[%clk 0:00:50]}  Bg6 {[%clk 0:02:32]} 18. N2f3 {[%clk 0:00:49]}  Nfe4 {[%clk 0:02:27]} 19. Ne5 {[%clk 0:00:47]}  Bh7 {[%clk 0:02:25]} 20. e3 {[%clk 0:00:41]}  Rc7 {[%clk 0:02:22]} 21. Qg4 {[%clk 0:00:37]}  Rac8 {[%clk 0:02:18]} 22. h4 {[%clk 0:00:28]}  a4 {[%clk 0:02:17]} 23. bxa4 {[%clk 0:00:27]}  Nxa4 {[%clk 0:02:14]} 24. Nd7 {[%clk 0:00:25]}  Qb2 {[%clk 0:02:03]} 25. Bxe4 {[%clk 0:00:20]}  Rxc1 {[%clk 0:01:54]} 26. Bxh7+ {[%clk 0:00:20]}  Kxh7 {[%clk 0:01:53]} 27. Rxc1 {[%clk 0:00:20]}  Rxc1+ {[%clk 0:01:52]} 28. Kg2 {[%clk 0:00:20]}  Qb1 {[%clk 0:01:44]} 29. Nf8+ {[%clk 0:00:15]}  Kg8 {[%clk 0:01:44]} 30. Nd7 {[%clk 0:00:14]}  Rg1+ {[%clk 0:01:43]} 31. Kf3 {[%clk 0:00:14]}  Nc3 {[%clk 0:01:35]} 32. Nxe6 {[%clk 0:00:12]}  Qe4+ {[%clk 0:01:29]} 33. Qxe4 {[%clk 0:00:11]}  dxe4+ {[%clk 0:01:30]} 34. Kf4 {[%clk 0:00:10]}  fxe6 {[%clk 0:01:31]} 35. Nc5 {[%clk 0:00:09]}  Nxa2 {[%clk 0:01:29]} 36. Nxe6 {[%clk 0:00:09]}  Rf1 {[%clk 0:01:28]} 37. Nc5 {[%clk 0:00:08]}  Rxf2+ {[%clk 0:01:28]} 38. Kxe4 {[%clk 0:00:08]}  Nc3+ {[%clk 0:01:28]} 39. Kd3 {[%clk 0:00:08]}  Nd5 {[%clk 0:01:27]} 40. Ne4 {[%clk 0:00:08]}  Rf3 {[%clk 0:01:27]} 41. Kd4 {[%clk 0:00:09]}  Nf6 {[%clk 0:01:23]} 42. Nd2 {[%clk 0:00:03]}  Rxg3 {[%clk 0:01:23]} 43. Ke5 {[%clk 0:00:04]}  Rxe3+ {[%clk 0:01:22]} 44. Kf4 {[%clk 0:00:04]}  Rh3 {[%clk 0:01:22]} 45. Nf3 {[%clk 0:00:04]}  Rxf3+ {[%clk 0:01:22]} 46. Kxf3 {[%clk 0:00:04]}  g5 {[%clk 0:01:23]} 47. Kg3 {[%clk 0:00:04]}  gxh4+ {[%clk 0:01:21]} 48. Kxh4 {[%clk 0:00:05]}  Kg7 {[%clk 0:01:22]} 49. Kg3 {[%clk 0:00:05]}  Kg6 {[%clk 0:01:23]} 50. Kh4 {[%clk 0:00:06]}  h5 {[%clk 0:01:23]} 51. Kg3 {[%clk 0:00:06]}  Kg5 {[%clk 0:01:24]} 52. Kh3 {[%clk 0:00:07]}  h4 {[%clk 0:01:25]} 53. Kg2 {[%clk 0:00:07]}  Kg4 {[%clk 0:01:26]} 54. Kh2 {[%clk 0:00:07]}  h3 {[%clk 0:01:26]} 55. Kg1 {[%clk 0:00:08]}  Kg3 {[%clk 0:01:27]} 56. Kh1 {[%clk 0:00:08]}  Ng4 {[%clk 0:01:27]} 57. Kg1 {[%clk 0:00:08]}  h2+ {[%clk 0:01:27]} 58. Kh1 {[%clk 0:00:08]}  Nf2# {[%clk 0:01:27]} 0-1


[Site "https://www.chess.com"]

[Event "Titled Tuesday Blitz September 21 2021"]
[White "Levitskiy, Andrey"]
[Black "Onyshchuk, Volodymyr"]
[WhiteFideId "14132885"]
[BlackFideId "14114038"]
[WhiteElo "2340"]
[BlackElo "2603"]
[Result "0-1"]
[Round "08"]
[TimeControl "180+1"]
[Date "2021.09.21"]
[WhiteClock "0:00:04"]
[BlackClock "0:00:05"]

1. e4 {[%clk 0:00:36]}  d6 {[%clk 0:02:56]} 2. d4 {[%clk 0:00:37]}  Nf6 {[%clk 0:02:56]} 3. Nc3 {[%clk 0:00:37]}  g6 {[%clk 0:02:50]} 4. Be3 {[%clk 0:00:37]}  c6 {[%clk 0:02:48]} 5. h3 {[%clk 0:00:37]}  Nbd7 {[%clk 0:02:40]} 6. f4 {[%clk 0:00:37]}  b5 {[%clk 0:02:37]} 7. a3 {[%clk 0:00:36]}  Nb6 {[%clk 0:02:32]} 8. Nf3 {[%clk 0:00:36]}  Bg7 {[%clk 0:02:30]} 9. Bd3 {[%clk 0:00:36]}  O-O {[%clk 0:02:26]} 10. O-O {[%clk 0:00:36]}  a6 {[%clk 0:02:20]} 11. b3 {[%clk 0:00:37]}  Qc7 {[%clk 0:02:19]} 12. Qe1 {[%clk 0:00:34]}  c5 {[%clk 0:02:10]} 13. dxc5 {[%clk 0:00:30]}  dxc5 {[%clk 0:02:10]} 14. Qf2 {[%clk 0:00:27]}  Nfd7 {[%clk 0:02:07]} 15. e5 {[%clk 0:00:16]}  Bb7 {[%clk 0:01:50]} 16. Be4 {[%clk 0:00:17]}  Rad8 {[%clk 0:01:39]} 17. Rae1 {[%clk 0:00:17]}  b4 {[%clk 0:01:32]} 18. axb4 {[%clk 0:00:17]}  cxb4 {[%clk 0:01:32]} 19. Bxb7 {[%clk 0:00:17]}  Qxb7 {[%clk 0:01:30]} 20. Nb1 {[%clk 0:00:15]}  Nd5 {[%clk 0:01:30]} 21. Nbd2 {[%clk 0:00:15]}  N7b6 {[%clk 0:01:25]} 22. Ne4 {[%clk 0:00:12]}  Nxe3 {[%clk 0:01:25]} 23. Qxe3 {[%clk 0:00:13]}  Nd5 {[%clk 0:01:25]} 24. Qc1 {[%clk 0:00:13]}  Qb6+ {[%clk 0:01:24]} 25. Kh1 {[%clk 0:00:12]}  Rc8 {[%clk 0:01:23]} 26. f5 {[%clk 0:00:10]}  gxf5 {[%clk 0:01:21]} 27. Ng3 {[%clk 0:00:10]}  f4 {[%clk 0:01:17]} 28. Nh5 {[%clk 0:00:09]}  Qh6 {[%clk 0:01:16]} 29. Nxg7 {[%clk 0:00:08]}  Qxg7 {[%clk 0:01:15]} 30. Re4 {[%clk 0:00:07]}  e6 {[%clk 0:01:13]} 31. Rd1 {[%clk 0:00:07]}  Rfd8 {[%clk 0:01:11]} 32. Rdd4 {[%clk 0:00:07]}  Kh8 {[%clk 0:01:08]} 33. Rxf4 {[%clk 0:00:07]}  Nxf4 {[%clk 0:01:08]} 34. Rxf4 {[%clk 0:00:08]}  Qh6 {[%clk 0:01:01]} 35. Qe3 {[%clk 0:00:06]}  Rxc2 {[%clk 0:00:58]} 36. Qe4 {[%clk 0:00:07]}  Rc1+ {[%clk 0:00:53]} 37. Kh2 {[%clk 0:00:07]}  Qg6 {[%clk 0:00:50]} 38. Qe3 {[%clk 0:00:06]}  Rc3 {[%clk 0:00:31]} 39. Qb6 {[%clk 0:00:04]}  Rg8 {[%clk 0:00:23]} 40. Rg4 {[%clk 0:00:04]}  Qh6 {[%clk 0:00:23]} 41. Qxb4 {[%clk 0:00:04]}  Rxg4 {[%clk 0:00:20]} 42. Qxc3 {[%clk 0:00:03]}  Qf4+ {[%clk 0:00:18]} 43. Kh1 {[%clk 0:00:03]}  Rg8 {[%clk 0:00:18]} 44. Qc6 {[%clk 0:00:02]}  Rd8 {[%clk 0:00:17]} 45. Qc2 {[%clk 0:00:01]}  Kg7 {[%clk 0:00:16]} 46. Qe2 {[%clk 0:00:02]}  a5 {[%clk 0:00:15]} 47. Qc2 {[%clk 0:00:01]}  Rd5 {[%clk 0:00:15]} 48. Qe2 {[%clk 0:00:02]}  h5 {[%clk 0:00:14]} 49. Kg1 {[%clk 0:00:02]}  Rc5 {[%clk 0:00:14]} 50. Kf2 {[%clk 0:00:03]}  Rc1 {[%clk 0:00:14]} 51. g3 {[%clk 0:00:03]}  Qb4 {[%clk 0:00:12]} 52. Qe3 {[%clk 0:00:03]}  Rc2+ {[%clk 0:00:07]} 53. Kf1 {[%clk 0:00:03]}  Qe7 {[%clk 0:00:06]} 54. Ng5 {[%clk 0:00:03]}  Qc5 {[%clk 0:00:05]} 55. Qf4 {[%clk 0:00:02]}  Rc1+ {[%clk 0:00:05]} 56. Ke2 {[%clk 0:00:03]}  Qc2+ {[%clk 0:00:05]} 57. Kf3 {[%clk 0:00:04]}  Rf1+ {[%clk 0:00:06]} 58. Ke3 {[%clk 0:00:04]}  Re1+ {[%clk 0:00:05]} 59. Kf3 {[%clk 0:00:04]}  Qe2# {[%clk 0:00:05]} 0-1


[Site "https://www.chess.com"]

[Event "Titled Tuesday Blitz September 21 2021"]
[White "Maksimenko, Viktor"]
[Black "Novikova, Galina"]
[WhiteFideId "13710478"]
[BlackFideId "4157095"]
[WhiteElo "2269"]
[BlackElo "1844"]
[Result "1-0"]
[Round "08"]
[TimeControl "180+1"]
[Date "2021.09.21"]
[WhiteClock "0:01:25"]
[BlackClock "0:00:05"]

1. d4 {[%clk 0:02:15]}  d5 {[%clk 0:01:12]} 2. Kd2 {[%clk 0:02:15]}  Nc6 {[%clk 0:01:05]} 3. Nf3 {[%clk 0:02:15]}  Bf5 {[%clk 0:01:04]} 4. e3 {[%clk 0:02:14]}  Nf6 {[%clk 0:01:03]} 5. Bd3 {[%clk 0:02:14]}  Bxd3 {[%clk 0:01:00]} 6. cxd3 {[%clk 0:02:15]}  Qd7 {[%clk 0:01:00]} 7. Nc3 {[%clk 0:02:15]}  e6 {[%clk 0:00:57]} 8. Ke2 {[%clk 0:02:13]}  Be7 {[%clk 0:00:57]} 9. Bd2 {[%clk 0:02:12]}  O-O {[%clk 0:00:56]} 10. Qa4 {[%clk 0:02:12]}  a6 {[%clk 0:00:54]} 11. Rhc1 {[%clk 0:02:12]}  Rfd8 {[%clk 0:00:48]} 12. Qb3 {[%clk 0:02:09]}  b5 {[%clk 0:00:44]} 13. a4 {[%clk 0:02:08]}  Na7 {[%clk 0:00:41]} 14. axb5 {[%clk 0:02:07]}  Nxb5 {[%clk 0:00:42]} 15. Nxb5 {[%clk 0:02:07]}  axb5 {[%clk 0:00:42]} 16. Rxa8 {[%clk 0:02:07]}  Rxa8 {[%clk 0:00:42]} 17. Qc2 {[%clk 0:02:02]}  Rc8 {[%clk 0:00:39]} 18. Ne5 {[%clk 0:02:02]}  Qe8 {[%clk 0:00:38]} 19. b4 {[%clk 0:01:58]}  Bd6 {[%clk 0:00:38]} 20. Nc6 {[%clk 0:01:57]}  h6 {[%clk 0:00:38]} 21. Ra1 {[%clk 0:01:55]}  Ra8 {[%clk 0:00:36]} 22. Ra5 {[%clk 0:01:54]}  Ng4 {[%clk 0:00:26]} 23. h3 {[%clk 0:01:50]}  Nf6 {[%clk 0:00:23]} 24. Rxb5 {[%clk 0:01:50]}  Nd7 {[%clk 0:00:23]} 25. Ra5 {[%clk 0:01:49]}  Rc8 {[%clk 0:00:21]} 26. b5 {[%clk 0:01:47]}  Nf6 {[%clk 0:00:18]} 27. Ra7 {[%clk 0:01:46]}  e5 {[%clk 0:00:18]} 28. dxe5 {[%clk 0:01:40]}  Bxe5 {[%clk 0:00:19]} 29. Bc3 {[%clk 0:01:35]}  Bxc3 {[%clk 0:00:14]} 30. Qxc3 {[%clk 0:01:36]}  Qe6 {[%clk 0:00:10]} 31. Nd4 {[%clk 0:01:33]}  Qb6 {[%clk 0:00:10]} 32. Qa5 {[%clk 0:01:33]}  Qc5 {[%clk 0:00:09]} 33. Ra8 {[%clk 0:01:31]}  Rxa8 {[%clk 0:00:08]} 34. Qxa8+ {[%clk 0:01:32]}  Kh7 {[%clk 0:00:09]} 35. Qc6 {[%clk 0:01:33]}  Qa3 {[%clk 0:00:08]} 36. Qxc7 {[%clk 0:01:31]}  Qa2+ {[%clk 0:00:08]} 37. Qc2 {[%clk 0:01:32]}  Qa1 {[%clk 0:00:09]} 38. b6 {[%clk 0:01:31]}  Qh1 {[%clk 0:00:06]} 39. b7 {[%clk 0:01:30]}  Qxg2 {[%clk 0:00:06]} 40. b8=Q {[%clk 0:01:29]}  Qxh3 {[%clk 0:00:05]} 41. Qcc8 {[%clk 0:01:25]} 1-0


[Site "https://www.chess.com"]

[Event "Titled Tuesday Blitz September 21 2021"]
[White "Manukyan, Artyom"]
[Black "Grandelius, Nils"]
[WhiteFideId "13305786"]
[BlackFideId "1710400"]
[WhiteElo "2034"]
[BlackElo "2651"]
[Result "0-1"]
[Round "08"]
[TimeControl "180+1"]
[Date "2021.09.21"]
[WhiteClock "0:00:07"]
[BlackClock "0:01:44"]

1. e4 {[%clk 0:02:33]}  c5 {[%clk 0:02:43]} 2. Nc3 {[%clk 0:01:52]}  e6 {[%clk 0:02:21]} 3. g3 {[%clk 0:01:23]}  d5 {[%clk 0:02:18]} 4. exd5 {[%clk 0:01:19]}  exd5 {[%clk 0:02:14]} 5. Bg2 {[%clk 0:01:20]}  d4 {[%clk 0:02:13]} 6. Nd5 {[%clk 0:01:18]}  Ne7 {[%clk 0:02:05]} 7. Nxe7 {[%clk 0:01:10]}  Bxe7 {[%clk 0:02:06]} 8. Nf3 {[%clk 0:01:09]}  O-O {[%clk 0:02:06]} 9. O-O {[%clk 0:01:09]}  d3 {[%clk 0:02:05]} 10. Re1 {[%clk 0:00:51]}  Nc6 {[%clk 0:02:05]} 11. cxd3 {[%clk 0:00:38]}  Bf6 {[%clk 0:02:05]} 12. Qa4 {[%clk 0:00:33]}  Qxd3 {[%clk 0:02:01]} 13. Qe4 {[%clk 0:00:28]}  Bf5 {[%clk 0:01:59]} 14. Qxd3 {[%clk 0:00:26]}  Bxd3 {[%clk 0:02:00]} 15. Bf1 {[%clk 0:00:16]}  Bf5 {[%clk 0:01:54]} 16. d3 {[%clk 0:00:14]}  Nb4 {[%clk 0:01:54]} 17. Be3 {[%clk 0:00:12]}  Nc2 {[%clk 0:01:52]} 18. Rac1 {[%clk 0:00:11]}  Nxe1 {[%clk 0:01:53]} 19. Rxe1 {[%clk 0:00:12]}  b6 {[%clk 0:01:52]} 20. d4 {[%clk 0:00:11]}  Bg4 {[%clk 0:01:50]} 21. Bg2 {[%clk 0:00:07]}  cxd4 {[%clk 0:01:47]} 22. Bxd4 {[%clk 0:00:05]}  Bxf3 {[%clk 0:01:45]} 23. Bxf3 {[%clk 0:00:05]}  Bxd4 {[%clk 0:01:46]} 24. Bxa8 {[%clk 0:00:06]}  Rxa8 {[%clk 0:01:46]} 25. b3 {[%clk 0:00:06]}  Kf8 {[%clk 0:01:45]} 26. Rd1 {[%clk 0:00:07]}  Rd8 {[%clk 0:01:44]} 27. Kg2 {[%clk 0:00:07]}  Ke7 {[%clk 0:01:44]} 0-1


[Site "https://www.chess.com"]